bitfinex/quotes_BTCUSD_20220226
["timestamp","ask_amount","ask_price","bid_price","bid_amount"]
[1645839452323,0.376035,39680.0,39673.0,0.1994784]
[1645839452522,0.376035,39681.0,39673.0,0.1994784]
[1645839452923,0.26579854,39682.0,39673.0,0.1994784]
[1645839453122,0.1780566,39685.0,39673.0,0.2014784]
[1645839453322,0.302093,39684.0,39673.0,0.2014784]
[1645839453523,0.292013,39684.0,39673.0,0.2014784]
[1645839453723,0.01008,39685.0,39673.0,0.2014784]
[1645839453981,0.292012,39684.0,39673.0,0.2014784]
[1645839454181,0.00036872,39680.0,39673.0,0.2014784]
[1645839454383,0.00036872,39680.0,39673.0,0.1994784]
[1645839454786,0.00036872,39680.0,39674.0,0.3]
[1645839454985,0.376035,39684.0,39674.0,0.3]
[1645839455186,0.01108,39685.0,39678.0,0.02512]
[1645839455389,0.001,39685.0,39682.0,0.02512]
[1645839455588,0.001,39685.0,39683.0,0.0463]
[1645839455786,0.001,39685.0,39684.0,0.401155]
[1645839456388,0.05,39690.0,39684.0,0.401155]
[1645839456590,0.00036872,39686.0,39685.0,0.376035]
[1645839456791,0.00036872,39686.0,39685.0,0.401155]
[1645839456993,8.72e-06,39686.0,39685.0,0.401155]
[1645839457196,8.72e-06,39686.0,39685.0,0.402155]
[1645839457393,0.001,39691.0,39685.0,0.64145044]
[1645839457638,0.001,39691.0,39689.0,0.376035]
[1645839458030,0.001,39691.0,39687.0,0.376035]
[1645839458232,0.001,39691.0,39685.0,0.34029544]
[1645839458429,0.05,39697.0,39685.0,0.38559544]
[1645839458630,0.376035,39700.0,39685.0,0.38559544]
[1645839458830,0.00011062,39690.0,39686.0,0.02512]
[1645839459030,0.00011062,39690.0,39685.0,0.38559544]
[1645839459231,0.00011062,39690.0,39687.0,0.1]
[1645839459431,0.00011062,39690.0,39688.0,0.376035]
[1645839459630,0.00011062,39690.0,39685.0,0.23929544]
[1645839459834,0.3,39701.0,39685.0,0.23929544]
[1645839460031,0.0001003,39691.0,39685.0,0.26441544]
[1645839460232,0.0001003,39691.0,39686.0,0.376035]
[1645839460432,0.0001003,39691.0,39687.0,0.376035]
[1645839460634,0.0001003,39691.0,39685.0,0.23929544]
[1645839460933,0.0001003,39691.0,39685.0,0.26441544]
[1645839461135,0.001,39696.0,39685.0,0.002]
[1645839461391,0.18085638,39690.0,39685.0,0.002]
[1645839461580,0.292013,39689.0,39685.0,0.002]
[1645839462485,0.00033345,39689.0,39681.0,0.20938314]
[1645839463183,0.376035,39688.0,39678.0,0.1222]
[1645839463381,0.001,39689.0,39678.0,0.1222]
[1645839463781,0.37636844,39688.0,39678.0,0.1222]
[1645839463981,0.3,39687.0,39678.0,0.1222]
[1645839464181,0.292013,39686.0,39678.0,0.1222]
[1645839464382,0.00033344,39688.0,39676.0,0.2042]
[1645839464383,0.376035,39684.0,39676.0,0.2042]
[1645839464582,0.376035,39684.0,39674.0,0.22337059]
[1645839464783,0.3,39683.0,39674.0,0.22337059]
[1645839464986,0.31008,39687.0,39674.0,0.22337059]
[1645839465233,0.31008,39687.0,39669.0,0.26557965]
[1645839465234,0.7658,39680.0,39669.0,0.26757965]
[1645839465428,0.7658,39680.0,39669.0,0.002]
[1645839465429,0.02512,39675.0,39669.0,0.002]
[1645839465625,0.302093,39674.0,39669.0,0.002]
[1645839465825,0.376035,39672.0,39669.0,0.002]
[1645839466226,0.05,39673.0,39669.0,0.002]
[1645839466227,1.057813,39670.0,39669.0,0.002]
[1645839466425,1.082933,39670.0,39668.0,0.00039577]
[1645839466625,0.376035,39669.0,39668.0,0.00039577]
[1645839467027,0.376035,39669.0,39665.0,0.33223815]
[1645839467028,0.54656517,39669.0,39665.0,0.33223815]
[1645839467226,0.84656517,39669.0,39667.0,0.00039578]
[1645839467428,3.12199193,39669.0,39667.0,0.00039578]
[1645839467630,2.95146176,39669.0,39667.0,0.00039578]
[1645839468227,2.95146176,39669.0,39665.0,0.33223815]
[1645839468526,2.95146176,39669.0,39666.0,0.000397]
[1645839468732,3.05146176,39669.0,39666.0,0.000397]
[1645839469004,0.292013,39667.0,39666.0,0.000397]
[1645839469204,0.392013,39667.0,39666.0,0.000397]
[1645839469408,0.692013,39667.0,39665.0,0.33223815]
[1645839469603,0.392013,39667.0,39665.0,0.33263585]
[1645839470604,0.392013,39667.0,39665.0,0.33223815]
[1645839471205,0.394013,39667.0,39665.0,0.33223815]
[1645839472006,0.386115,39666.0,39665.0,0.33223815]
[1645839474825,0.376035,39666.0,39665.0,0.33223815]
[1645839476477,2.57542676,39669.0,39666.0,0.47798402]
[1645839476877,0.70763591,39686.0,39666.0,0.47798402]
[1645839476878,0.376035,39676.0,39666.0,0.47798402]
[1645839477074,0.376035,39679.0,39666.0,0.47798402]
[1645839477273,0.001,39674.0,39666.0,0.47798402]
[1645839477674,0.376035,39673.0,39666.0,0.47798402]
[1645839478180,0.376035,39672.0,39668.0,0.00038249]
[1645839478974,0.376035,39672.0,39666.0,0.47798402]
[1645839479176,2.27274302,39671.0,39666.0,0.47798402]
[1645839479376,0.292013,39670.0,39668.0,0.00038306]
[1645839480223,0.29189527,39670.0,39666.0,0.47798402]
[1645839480419,0.29189527,39670.0,39667.0,0.00040887]
[1645839481120,2.27274302,39671.0,39667.0,0.00040887]
[1645839481321,0.291934,39670.0,39667.0,0.00040887]
[1645839481519,0.291934,39670.0,39666.0,0.47798402]
[1645839481819,0.291934,39670.0,39667.0,0.00040887]
[1645839482822,0.19998,39682.0,39667.0,0.00040824]
[1645839483022,0.53931209,39686.0,39668.0,0.65988572]
[1645839483221,0.53931209,39686.0,39684.0,0.31075554]
[1645839483222,0.376002,39685.0,39684.0,0.31075554]
[1645839483622,0.386072,39685.0,39684.0,0.31075554]
[1645839484880,0.01007,39685.0,39684.0,0.31075554]
[1645839485081,0.17051209,39689.0,39685.0,0.376002]
[1645839485283,0.002,39690.0,39684.0,0.31075554]
[1645839485580,0.00031188,39688.0,39684.0,0.31075554]
[1645839486378,0.002,39690.0,39684.0,0.31075554]
[1645839486577,0.3,39695.0,39684.0,0.31075554]
[1645839486578,9.388e-05,39688.0,39684.0,0.31075554]
[1645839486980,0.17060597,39688.0,39684.0,0.31075554]
[1645839487479,0.17051209,39688.0,39684.0,0.31075554]
[1645839487920,0.17082428,39688.0,39684.0,0.31075554]
[1645839488722,0.17051209,39688.0,39684.0,0.31075554]
[1645839488921,0.37082428,39688.0,39684.0,0.31075554]
[1645839489321,0.37182428,39688.0,39684.0,0.31075554]
[1645839489721,0.20131219,39688.0,39684.0,0.31075554]
[1645839489923,0.201,39688.0,39684.0,0.31075554]
[1645839490122,0.20131217,39688.0,39684.0,0.31075554]
[1645839490323,0.37179343,39688.0,39684.0,0.31075554]
[1645839490522,0.37079343,39688.0,39684.0,0.31075554]
[1645839491128,0.37048126,39688.0,39684.0,0.31075554]
[1645839491381,0.37079343,39688.0,39684.0,0.31175554]
[1645839492381,0.37048126,39688.0,39684.0,0.31075554]
[1645839492583,0.37079343,39688.0,39684.0,0.31075554]
[1645839492779,0.20031217,39688.0,39684.0,0.31075554]
[1645839493179,0.20031217,39688.0,39684.0,0.31175554]
[1645839493580,0.2,39688.0,39684.0,0.31175554]
[1645839493787,0.20031217,39688.0,39684.0,0.31175554]
[1645839494581,0.20031217,39688.0,39684.0,0.31075554]
[1645839494784,0.2,39688.0,39684.0,0.31075554]
[1645839494985,0.2,39688.0,39685.0,0.376002]
[1645839494986,0.20031217,39688.0,39685.0,0.376002]
[1645839495834,0.2,39688.0,39685.0,0.376002]
[1645839496234,0.20031217,39688.0,39685.0,0.376002]
[1645839496637,0.01007,39701.0,39693.0,0.23648835]
[1645839496835,1.76102488,39695.0,39693.0,0.23648835]
[1645839497135,1.76102488,39695.0,39688.0,0.00746929]
[1645839497336,0.17046409,39694.0,39688.0,0.00746929]
[1645839498634,0.376002,39692.0,39688.0,0.00746929]
[1645839498875,9.389e-05,39693.0,39688.0,0.00746929]
[1645839499476,0.17046409,39694.0,39688.0,0.00746929]
[1645839499874,9.372e-05,39692.0,39688.0,0.00746929]
[1645839500273,9.372e-05,39692.0,39688.0,0.00676736]
[1645839500473,0.376002,39691.0,39688.0,0.00676736]
[1645839500673,0.376002,39693.0,39688.0,0.00676736]
[1645839501076,9.372e-05,39692.0,39688.0,0.00676736]
[1645839501378,0.291933,39691.0,39688.0,0.00676736]
[1645839501682,9.372e-05,39692.0,39688.0,0.00676736]
[1645839501876,0.001,39693.0,39689.0,0.376002]
[1645839502075,0.001,39693.0,39688.0,0.00676736]
[1645839502275,0.0001039,39691.0,39689.0,0.376002]
[1645839503126,1.76102488,39695.0,39689.0,0.376002]
[1645839503327,0.001,39691.0,39689.0,0.376002]
[1645839504930,0.001,39691.0,39690.0,0.676002]
[1645839505129,0.0003461,39692.0,39690.0,0.676002]
[1645839505330,0.0003461,39692.0,39691.0,0.676002]
[1645839505628,0.0003461,39692.0,39691.0,0.376002]
[1645839506028,0.00030648,39693.0,39691.0,0.376002]
[1645839506680,0.01007,39705.0,39692.0,0.32512]
[1645839506887,0.05,39706.0,39693.0,1.272302]
[1645839507080,0.81844733,39708.0,39693.0,1.272302]
[1645839507081,0.59107,39708.0,39694.0,0.3]
[1645839507281,0.3879,39708.0,39695.0,0.0463]
[1645839507480,0.1917,39708.0,39696.0,0.3]
[1645839507682,0.01,39709.0,39705.0,0.20499304]
[1645839507882,0.376002,39708.0,39705.0,0.20499304]
[1645839508686,0.01007,39714.0,39705.0,0.20499304]
[1645839508885,0.376002,39713.0,39705.0,0.20499304]
[1645839509083,0.01007,39712.0,39705.0,0.20499304]
[1645839509283,0.291933,39711.0,39705.0,0.20499304]
[1645839509488,0.291933,39711.0,39698.0,0.3]
[1645839509489,0.00031268,39711.0,39698.0,0.3]
[1645839509687,0.00031268,39711.0,39697.0,0.1801]
[1645839509688,0.317053,39710.0,39697.0,0.1801]
[1645839509887,0.327123,39710.0,39697.0,0.1801]
[1645839510135,0.16563451,39709.0,39697.0,0.1801]
[1645839510335,1.266922,39708.0,39689.0,0.20902031]
[1645839510535,0.02512,39703.0,39689.0,0.20902031]
[1645839510739,0.02512,39701.0,39688.0,0.00676736]
[1645839510930,0.376002,39700.0,39688.0,0.00676736]
[1645839511131,0.41413933,39702.0,39688.0,0.00676736]
[1645839511333,0.41413933,39702.0,39689.0,0.001]
[1645839511334,0.40406933,39702.0,39689.0,0.001]
[1645839511532,0.19554779,39704.0,39689.0,0.001]
[1645839511730,2.03053106,39706.0,39689.0,0.001]
[1645839511732,0.22042779,39705.0,39689.0,0.001]
[1645839511930,9.399e-05,39697.0,39694.0,0.1884575]
[1645839512134,9.399e-05,39697.0,39689.0,0.001]
[1645839512533,9.399e-05,39697.0,39688.0,0.00676736]
[1645839512731,0.02512,39702.0,39688.0,0.00676736]
[1645839512931,0.291933,39699.0,39688.0,0.00676736]
[1645839513132,0.00034574,39695.0,39688.0,0.00676736]
[1645839513335,0.376002,39701.0,39699.0,0.25936485]
[1645839514177,0.28567164,39700.0,39699.0,0.25936485]
[1645839514377,1.057733,39700.0,39699.0,0.25936485]
[1645839514578,1.23823079,39700.0,39699.0,0.25936485]
[1645839514781,1.067803,39700.0,39699.0,0.25936485]
[1645839514977,1.23823079,39700.0,39699.0,0.25936485]
[1645839517081,1.23733299,39700.0,39699.0,0.25936485]
[1645839517285,1.23833299,39700.0,39699.0,0.25936485]
[1645839519123,1.23733299,39700.0,39699.0,0.25936485]
[1645839519321,1.23933299,39700.0,39699.0,0.25936485]
[1645839519521,0.47353299,39700.0,39699.0,0.25936485]
[1645839519922,0.3031052,39700.0,39699.0,0.25936485]
[1645839520320,0.2930352,39700.0,39699.0,0.25936485]
[1645839520520,0.2910352,39700.0,39699.0,0.25936485]
[1645839520922,0.2910352,39700.0,39699.0,0.25436485]
[1645839522987,0.2910352,39700.0,39649.0,0.70344]
[1645839522988,37.35681276,39650.0,39649.0,0.70344]
[1645839523187,8.08887694,39650.0,39649.0,3.58852566]
[1645839523388,7.10630534,39650.0,39649.0,4.87018549]
[1645839523588,7.10630534,39650.0,39649.0,5.02927977]
[1645839523786,7.10630534,39650.0,39649.0,4.89137831]
[1645839523985,7.10630534,39650.0,39649.0,4.69103831]
[1645839523986,7.10520534,39650.0,39649.0,4.69103831]
[1645839524285,7.10520534,39650.0,39649.0,4.59770383]
[1645839524686,7.10520534,39650.0,39649.0,4.09770383]
[1645839525236,7.10520534,39650.0,39649.0,4.2242123]
[1645839526236,7.10520534,39650.0,39649.0,3.5584123]
[1645839526638,7.10520534,39650.0,39649.0,4.03733726]
[1645839526837,7.10520534,39650.0,39649.0,3.37699397]
[1645839527238,7.10520534,39650.0,39649.0,2.78889397]
[1645839528241,7.10520534,39650.0,39649.0,3.26784469]
[1645839528641,7.10520534,39650.0,39649.0,3.26127917]
[1645839528880,7.10520534,39650.0,39649.0,2.78232845]
[1645839529280,7.10247695,39650.0,39649.0,2.78232845]
[1645839529683,7.10247695,39650.0,39649.0,3.54812845]
[1645839529979,7.10247695,39650.0,39649.0,4.02707917]
[1645839530181,7.10247695,39650.0,39649.0,3.26127917]
[1645839530384,7.10247695,39650.0,39649.0,4.02707917]
[1645839530580,7.10247695,39650.0,39649.0,3.54812845]
[1645839530979,7.10247695,39650.0,39649.0,2.75782845]
[1645839531181,6.10779564,39650.0,39649.0,2.0633394]
[1645839531383,6.10779564,39650.0,39649.0,2.69375384]
[1645839531780,6.07274192,39650.0,39649.0,2.69375384]
[1645839532381,6.07274192,39650.0,39649.0,3.45955384]
[1645839532636,6.07274192,39650.0,39649.0,2.69375384]
[1645839532830,6.07274192,39650.0,39649.0,3.45955384]
[1645839534535,6.07274192,39650.0,39649.0,1.99926479]
[1645839535734,6.07274192,39650.0,39649.0,1.88315518]
[1645839536135,6.07274192,39650.0,39649.0,1.94607775]
[1645839537682,6.07274192,39650.0,39649.0,1.88315518]
[1645839538486,1.621055,39650.0,39649.0,2.57764423]
[1645839538684,0.74511836,39650.0,39649.0,3.40636055]
[1645839538885,0.73511836,39650.0,39649.0,3.41292607]
[1645839539286,0.38087044,39674.0,39661.0,0.15]
[1645839539489,0.01008,39674.0,39664.0,0.1998]
[1645839539688,0.01008,39674.0,39665.0,0.0463]
[1645839539887,0.36890712,39679.0,39665.0,0.0463]
[1645839540124,0.27174283,39678.0,39666.0,0.02512]
[1645839540325,0.27174283,39678.0,39667.0,0.0463]
[1645839540524,0.27174283,39678.0,39668.0,0.0463]
[1645839540730,0.27174283,39678.0,39669.0,0.0463]
[1645839540926,0.27174283,39678.0,39669.0,0.01921475]
[1645839545780,0.18696153,39677.0,39673.0,0.005]
[1645839548931,0.27174283,39678.0,39673.0,0.005]
[1645839549934,0.26674283,39678.0,39673.0,0.005]
[1645839550134,0.26674283,39678.0,39673.0,0.0513]
[1645839552586,0.26674283,39678.0,39674.0,0.1998]
[1645839552788,0.26674283,39678.0,39675.0,0.0463]
[1645839553587,0.26174283,39678.0,39675.0,0.0463]
[1645839556536,0.26174283,39678.0,39676.0,0.1998]
[1645839556730,0.26174283,39678.0,39677.0,0.0463]
[1645839558229,0.00036175,39680.0,39677.0,0.32142]
[1645839558428,0.00036175,39680.0,39679.0,0.54918318]
[1645839558629,0.1,39696.0,39679.0,0.72060318]
[1645839558886,0.1,39696.0,39681.0,0.0999]
[1645839559088,0.1,39696.0,39682.0,0.0463]
[1645839559588,0.36733736,39695.0,39684.0,0.0999]
[1645839559789,0.36733736,39697.0,39685.0,0.0463]
[1645839559990,0.1,39694.0,39685.0,0.0463]
[1645839560489,0.31264676,39694.0,39685.0,0.0463]
[1645839560688,0.21264676,39694.0,39685.0,0.0463]
[1645839562489,0.00037253,39691.0,39685.0,0.0463]
[1645839563431,0.31264676,39694.0,39685.0,0.0503]
[1645839563933,0.00037253,39690.0,39685.0,0.0503]
[1645839564633,0.36576562,39693.0,39685.0,0.0463]
[1645839564833,0.31264676,39694.0,39685.0,0.0463]
[1645839565033,0.00037253,39689.0,39685.0,0.0463]
[1645839565933,0.30764676,39694.0,39685.0,0.0463]
[1645839567281,0.00035238,39691.0,39685.0,0.0463]
[1645839568283,0.30764676,39694.0,39684.0,0.0738]
[1645839568284,0.1,39692.0,39684.0,0.0738]
[1645839568483,0.00035238,39690.0,39684.0,0.0738]
[1645839569485,0.1,39692.0,39684.0,0.0738]
[1645839569686,0.00035238,39689.0,39684.0,0.0738]
[1645839570739,0.1,39695.0,39684.0,0.0738]
[1645839570944,0.00037304,39688.0,39684.0,0.0738]
[1645839571342,0.00037304,39688.0,39684.0,0.1201]
[1645839571538,0.00037304,39688.0,39684.0,0.1221]
[1645839571942,0.1,39695.0,39684.0,0.1221]
[1645839572139,0.00037304,39688.0,39684.0,0.1221]
[1645839572741,0.00037304,39688.0,39684.0,0.1201]
[1645839573140,0.36576562,39694.0,39684.0,0.1201]
[1645839573339,0.1,39695.0,39684.0,0.1201]
[1645839573340,0.00037304,39688.0,39684.0,0.1201]
[1645839574283,0.1,39693.0,39684.0,0.1201]
[1645839574489,0.00032773,39688.0,39684.0,0.1201]
[1645839576386,0.1,39685.0,39684.0,0.0738]
[1645839576586,0.46576562,39685.0,39684.0,0.0738]
[1645839576785,0.1,39685.0,39684.0,0.0738]
[1645839577384,0.1,39685.0,39677.0,0.75611]
[1645839577385,0.20861259,39679.0,39677.0,0.75611]
[1645839579031,0.1,39678.0,39677.0,0.75611]
[1645839579837,0.23373259,39679.0,39677.0,0.75611]
[1645839580135,0.1,39678.0,39677.0,0.75611]
[1645839581136,0.23373259,39679.0,39677.0,0.75611]
[1645839581590,0.33373259,39679.0,39677.0,0.75811]
[1645839581988,0.33373259,39679.0,39677.0,0.85801]
[1645839582690,0.33373259,39679.0,39677.0,0.85601]
[1645839583288,0.33373259,39679.0,39677.0,0.75611]
[1645839583488,0.33373259,39679.0,39677.0,0.85901]
[1645839583889,0.1,39679.0,39677.0,0.85901]
[1645839584289,0.12512,39679.0,39677.0,0.85901]
[1645839584689,0.1,39679.0,39677.0,0.85601]
[1645839584890,0.12512,39679.0,39677.0,0.85601]
[1645839585335,0.1,39679.0,39677.0,0.85601]
[1645839585535,0.1,39679.0,39677.0,0.85901]
[1645839586935,0.12512,39679.0,39677.0,0.85601]
[1645839587338,0.12512,39679.0,39677.0,0.75611]
[1645839587538,0.12512,39679.0,39677.0,0.85601]
[1645839588339,0.1,39679.0,39677.0,0.85601]
[1645839588639,0.09976,39679.0,39677.0,0.85601]
[1645839588888,0.26131082,39681.0,39679.0,0.0999]
[1645839589092,0.10007965,39680.0,39679.0,0.0999]
[1645839589885,0.09976,39680.0,39679.0,0.0999]
[1645839590487,0.09976,39680.0,39679.0,0.0994503]
[1645839591587,0.09976,39680.0,39679.0,0.1014503]
[1645839592487,0.09976,39680.0,39679.0,0.002]
[1645839592733,0.09976,39680.0,39674.0,0.0994]
[1645839593533,0.09976,39680.0,39674.0,0.1034]
[1645839593735,0.30125593,39680.0,39674.0,0.1034]
[1645839593933,0.30162896,39680.0,39674.0,0.1034]
[1645839594933,0.30162896,39680.0,39674.0,0.0994]
[1645839595335,0.09976,39679.0,39674.0,0.0994]
[1645839595537,0.09976,39679.0,39674.0,0.1024]
[1645839597585,0.09976,39679.0,39674.0,0.1074]
[1645839598887,0.09976,39679.0,39674.0,0.0994]
[1645839600533,0.18978354,39679.0,39674.0,0.0994]
[1645839600740,0.09976,39677.0,39674.0,0.0994]
[1645839601133,0.09976,39677.0,39674.0,0.0944]
[1645839607291,0.09976,39675.0,39674.0,0.0944]
[1645839609435,0.3646775,39682.0,39674.0,0.0944]
[1645839609436,0.09976,39677.0,39674.0,0.0944]
[1645839610434,0.09976,39677.0,39674.0,0.0939499]
[1645839610838,0.00037346,39680.0,39674.0,0.0939499]
[1645839611039,0.00037346,39680.0,39674.0,0.1190699]
[1645839611238,0.00037346,39680.0,39674.0,0.2153699]
[1645839611487,0.00037346,39680.0,39674.0,0.12142]
[1645839611686,0.00037346,39680.0,39676.0,0.0939]
[1645839611891,0.00037346,39680.0,39677.0,0.0463]
[1645839612089,0.00037348,39680.0,39677.0,0.04533551]
[1645839612493,0.00037348,39680.0,39679.0,0.79092]
[1645839612689,0.00037348,39680.0,39679.0,1.45152068]
[1645839612888,0.1476,39683.0,39682.0,0.79092]
[1645839613089,0.1476,39683.0,39682.0,1.9581475]
[1645839613288,0.1476,39683.0,39682.0,2.0081475]
[1645839613888,0.1476,39683.0,39682.0,2.2079475]
[1645839614490,0.11058291,39683.0,39682.0,2.2079475]
[1645839615143,0.11058291,39683.0,39682.0,1.4421475]
[1645839615345,0.11058291,39683.0,39682.0,2.2079475]
[1645839615545,0.11058291,39683.0,39682.0,1.4421475]
[1645839617147,0.11058291,39683.0,39682.0,2.2079475]
[1645839617546,0.11058291,39683.0,39682.0,2.2119475]
[1645839617849,0.01,39699.0,39682.0,3.2157754]
[1645839618049,0.01,39699.0,39689.0,0.02536]
[1645839618248,0.01,39699.0,39695.0,0.02512]
[1645839618449,0.01,39699.0,39696.0,0.2461]
[1645839618649,0.01,39699.0,39697.0,0.0463]
[1645839619286,0.01,39699.0,39697.0,0.2461]
[1645839619488,0.01037256,39699.0,39698.0,0.02512]
[1645839619688,0.01037256,39699.0,39698.0,0.07142]
[1645839620089,0.01037256,39699.0,39698.0,0.17142]
[1645839620289,0.01037256,39699.0,39698.0,0.37122]
[1645839620488,0.01,39699.0,39698.0,0.37122]
[1645839621087,0.01,39699.0,39698.0,1.12693]
[1645839621292,0.01,39699.0,39698.0,1.19571]
[1645839621788,0.01,39699.0,39698.0,1.96651]
[1645839622189,0.01,39699.0,39698.0,1.22583]
[1645839622389,0.01,39699.0,39698.0,1.22607]
[1645839622640,0.01,39699.0,39698.0,1.22583]
[1645839622831,0.01,39699.0,39698.0,1.22083]
[1645839623232,0.01,39699.0,39698.0,1.58334936]
[1645839624733,0.01,39699.0,39698.0,2.34938936]
[1645839624934,0.01,39699.0,39698.0,1.55846936]
[1645839625533,0.01,39699.0,39698.0,2.32426936]
[1645839625734,0.01,39699.0,39698.0,2.33126936]
[1645839626134,0.01,39699.0,39698.0,2.35638936]
[1645839626393,0.01,39699.0,39698.0,1.56546936]
[1645839626592,0.01,39699.0,39698.0,1.56522936]
[1645839626797,0.01,39699.0,39698.0,1.20271]
[1645839626991,0.01,39699.0,39698.0,1.19571]
[1645839627393,0.01,39699.0,39698.0,0.99591]
[1645839627693,0.01,39699.0,39698.0,0.89591]
[1645839628896,0.01,39699.0,39698.0,0.84961]
[1645839629098,0.10976,39699.0,39698.0,0.84961]
[1645839629896,0.10976,39699.0,39698.0,0.75571]
[1645839630156,0.10476,39699.0,39698.0,0.75571]
[1645839630759,0.10476,39699.0,39698.0,0.18760789]
[1645839635981,0.10476,39699.0,39693.0,0.002]
[1645839636184,0.09976,39694.0,39693.0,0.002]
[1645839636783,0.09976,39694.0,39689.0,0.0939]
[1645839636985,0.3912555,39695.0,39689.0,0.0939]
[1645839637183,0.09976,39691.0,39681.0,0.0939]
[1645839637386,0.09976,39694.0,39681.0,0.0939]
[1645839637635,0.09976,39694.0,39689.0,0.002]
[1645839638636,0.00037256,39693.0,39689.0,0.002]
[1645839638937,0.00037256,39693.0,39681.0,0.1439]
[1645839639641,0.00037256,39689.0,39681.0,0.1439]
[1645839640640,0.09976,39694.0,39681.0,0.1439]
[1645839640840,0.00034997,39687.0,39681.0,0.1439]
[1645839641886,0.09976,39694.0,39681.0,0.1439]
[1645839642087,0.00034997,39686.0,39681.0,0.15397]
[1645839643086,0.09976,39694.0,39681.0,0.15397]
[1645839643288,0.00034997,39685.0,39681.0,0.15397]
[1645839643686,0.00034997,39685.0,39681.0,0.15697]
[1645839644287,0.09976,39694.0,39681.0,0.15697]
[1645839644288,0.09976,39694.0,39681.0,0.1469]
[1645839644491,0.00037256,39685.0,39681.0,0.1469]
[1645839644894,0.00037256,39685.0,39681.0,0.1439]
[1645839645540,0.09976,39688.0,39681.0,0.1439]
[1645839645938,0.00037256,39685.0,39681.0,0.1439]
[1645839646139,0.00037256,39685.0,39681.0,0.0939]
[1645839646140,0.09976,39682.0,39681.0,0.0939]
[1645839646740,0.09976,39682.0,39678.0,0.1998]
[1645839646938,0.22973163,39684.0,39676.0,0.0979]
[1645839646939,0.3661355,39683.0,39676.0,0.0979]
[1645839647142,0.28129925,39677.0,39676.0,0.0979]
[1645839647543,0.09976,39677.0,39676.0,0.0979]
[1645839648541,0.09976,39678.0,39676.0,0.0979]
[1645839648979,0.09976,39678.0,39666.0,0.1191]
[1645839648980,0.09976,39678.0,39672.0,0.0939]
[1645839649381,0.09976,39678.0,39673.0,0.00040591]
[1645839650283,0.09976,39680.0,39672.0,0.0939]
[1645839650582,0.00030987,39682.0,39673.0,0.00040591]
[1645839650583,0.00030985,39682.0,39673.0,0.00040591]
[1645839651183,0.09976,39680.0,39673.0,0.00040591]
[1645839651584,0.19962178,39683.0,39672.0,0.0939]
[1645839651884,0.09968627,39680.0,39673.0,0.00039147]
[1645839652741,0.09968627,39680.0,39672.0,0.0939]
[1645839653037,0.09968627,39680.0,39673.0,0.00039147]
[1645839653840,0.09968627,39680.0,39673.0,0.00339147]
[1645839654137,0.09968627,39680.0,39673.0,0.003]
[1645839654338,0.09968627,39680.0,39673.0,0.00339147]
[1645839654940,0.0463,39703.0,39700.0,1.11724982]
[1645839655141,3.20675124,39701.0,39700.0,0.02879628]
[1645839655343,3.26682124,39701.0,39700.0,0.02879628]
[1645839655542,3.32984458,39701.0,39700.0,0.02879628]
[1645839655740,3.33084458,39701.0,39700.0,0.02879628]
[1645839655941,3.28084458,39701.0,39700.0,0.02879628]
[1645839656140,2.90475058,39701.0,39700.0,0.02879628]
[1645839656411,2.53621629,39701.0,39700.0,0.02879628]
[1645839656612,2.52614629,39701.0,39700.0,0.02879628]
[1645839657209,2.52514629,39701.0,39700.0,0.02879628]
[1645839658308,2.52514629,39701.0,39700.0,0.02379628]
[1645839659307,2.3229494,39701.0,39700.0,0.02379628]
[1645839660844,0.04759255,39697.0,39690.0,0.11006999]
[1645839661044,0.04759255,39697.0,39690.0,0.15636999]
[1645839661845,0.04759255,39697.0,39690.0,0.14929999]
[1645839662747,0.0003719,39695.0,39690.0,0.0493]
[1645839662950,0.0003719,39695.0,39690.0,0.0463]
[1645839663348,0.0003719,39695.0,39694.0,0.09999999]
[1645839663549,0.04759255,39697.0,39694.0,0.09999999]
[1645839664492,0.04759255,39697.0,39693.0,0.19938318]
[1645839664694,0.04759255,39697.0,39696.0,0.09999999]
[1645839665092,0.04796445,39697.0,39696.0,0.09999999]
[1645839666093,0.04759255,39697.0,39696.0,0.09999999]
[1645839670839,0.04759255,39697.0,39696.0,0.34568317]
[1645839671237,0.04759255,39697.0,39696.0,0.14629999]
[1645839671493,0.04759255,39697.0,39696.0,0.34568317]
[1645839671892,0.04759255,39697.0,39696.0,0.34768317]
[1645839672094,0.04759255,39697.0,39696.0,0.14829999]
[1645839673097,0.04759255,39697.0,39696.0,0.14629999]
[1645839676939,0.04759255,39697.0,39696.0,0.09999999]
[1645839681794,0.04759255,39697.0,39696.0,0.10299999]
[1645839682096,0.04747939,39697.0,39696.0,0.10299999]
[1645839683142,0.04747939,39697.0,39696.0,0.09999999]
[1645839683743,0.04747939,39697.0,39696.0,0.10299999]
[1645839684647,0.04747939,39697.0,39696.0,0.003]
[1645839685650,0.04747939,39697.0,39688.0,0.32915761]
[1645839685850,0.23729477,39692.0,39691.0,0.002]
[1645839686889,0.00036092,39693.0,39691.0,0.002]
[1645839687088,0.00036092,39693.0,39688.0,0.37915761]
[1645839687490,0.00036092,39693.0,39688.0,0.06007]
[1645839687689,0.04747939,39697.0,39688.0,0.38387542]
[1645839687988,0.00036092,39692.0,39689.0,0.31908761]
[1645839688594,0.00036092,39692.0,39691.0,0.29938317]
[1645839688790,0.17113572,39696.0,39691.0,0.29938317]
[1645839688992,0.17113572,39696.0,39688.0,0.003]
[1645839689194,0.0003719,39692.0,39685.0,0.1333]
[1645839690440,0.17113572,39696.0,39685.0,0.1333]
[1645839690441,0.0003719,39690.0,39685.0,0.1333]
[1645839691439,0.0003719,39690.0,39684.0,0.4]
[1645839691639,0.00011157,39689.0,39681.0,0.78679303]
[1645839691839,0.00011157,39689.0,39681.0,0.41298761]
[1645839692242,0.00011157,39689.0,39682.0,0.31908761]
[1645839692441,0.21135065,39690.0,39682.0,0.31908761]
[1645839692640,9.254e-05,39687.0,39682.0,0.31908761]
[1645839693640,0.04747939,39697.0,39682.0,0.31908761]
[1645839693897,9.254e-05,39686.0,39683.0,0.69289303]
[1645839694093,9.254e-05,39686.0,39682.0,0.31908761]
[1645839694295,9.254e-05,39686.0,39683.0,0.31908761]
[1645839694695,9.254e-05,39686.0,39683.0,0.4190876]